fUSD/lending_fUSD_20250119
["ID","MTS","AMOUNT","RATE_DAILY","PERIOD"]
[349566022,1737297064333,-2317.78839145,0.00023,10]
[349566023,1737297064362,-2573.41576035,0.00023,10]
[349566024,1737297064373,-2719.90438347,0.00023,14]
[349566025,1737297064386,-7850.05706753,0.00023,14]
[349566026,1737297064396,-1119.92477988,0.00023,2]
[349566027,1737297064407,-508.5,0.00023,2]
[349566028,1737297064417,-500.0,0.00023,2]
[349566029,1737297064427,-999.99,0.00023,30]
[349566030,1737297064437,-482.96028726,0.00023,5]
[349566031,1737297064447,-200.0,0.00023,2]
[349566032,1737297064457,-5073.98726954,0.00023,2]
[349566033,1737297064467,-916.38535978,0.00023,2]
[349566034,1737297064476,-2638.47781063,0.00023,2]
[349566035,1737297064548,-361.52218937,0.00023,2]
[349566036,1737297064557,-1546.81,0.00023,2]
[349566037,1737297064566,-1898.34,0.00023,2]
[349566038,1737297064579,-1674.92781063,0.00023,2]
[349566043,1737297346683,992.0,0.00022,120]
[349566045,1737297669655,500.0,0.00019178,30]
[349566046,1737297670118,500.0,0.00019178,30]
[349566047,1737297670793,500.0,0.00019178,30]
[349566048,1737297671288,500.0,0.00019178,30]
[349566049,1737297671737,500.0,0.00019178,30]
[349566050,1737297672323,500.0,0.00019178,30]
[349566051,1737297672861,500.0,0.00019178,30]
[349566052,1737297673776,306.43682028,0.00019178,30]
[349566053,1737297835059,244.66,0.00010137,2]
[349566056,1737298032141,-244.66,0.00016813,2]
[349566057,1737298032164,-217.14717785,0.00017787,2]
[349566060,1737298231993,-388.98282215,0.00017787,2]
[349566061,1737298232003,-166.64,0.00018986,2]
[349566062,1737298232012,-780.37417885,0.00019346,2]
[349566063,1737298232021,-3167.70311173,0.00019348,2]
[349566064,1737298232030,-335.478,0.0001935,2]
[349566065,1737298232046,-813.42926168,0.0001935,2]
[349566066,1737298232064,-4585.042626,0.0001935,2]
[349566067,1737298232221,-4048.58310353,0.0001935,2]
[349566068,1737298232230,-13185.3715,0.00019351,2]
[349566069,1737298232240,-3998.81036968,0.00019353,2]
[349566070,1737298232251,-5092.3002371,0.00019353,2]
[349566071,1737298232275,-1713.42164618,0.00019353,2]
[349566072,1737298232284,-3167.70311173,0.00019365,2]
[349566073,1737298232294,-646.72090874,0.00019371,2]
[349566074,1737298232303,-9447.05499121,0.00019374,2]
[349566075,1737298232312,-646.72090874,0.00019374,2]
[349566076,1737298232323,-215.57363625,0.00019375,2]
[349566077,1737298232333,-979.3180471,0.0001938,2]
[349566078,1737298232344,-472.4999982,0.0001938,2]
[349566079,1737298232355,-309.295005,0.0001938,2]
[349566080,1737298232368,-384.54,0.0001938,2]
[349566081,1737298232386,-863.2139858,0.0001938,2]
[349566082,1737298232398,-7795.66521686,0.0001938,2]
[349566083,1737298232407,-9447.05499121,0.00019387,2]
[349566084,1737298232416,-780.37417885,0.00019393,2]
[349566085,1737298232427,-10804.53225296,0.00019398,2]
[349566086,1737298232436,-215.57363625,0.00019399,2]
[349566088,1737298232445,-3167.70311173,0.00019399,2]
[349566090,1737298232455,-9447.05499121,0.00019407,2]
[349566092,1737298232465,-780.37417885,0.00019415,2]
[349566094,1737298232474,-215.57363625,0.00019417,2]
[349566096,1737298232483,-3167.70311173,0.00019419,2]
[349566098,1737298232492,-9447.05499121,0.00019422,2]
[349566100,1737298232507,-250.0,0.00019432,2]
[349566102,1737298232516,-10804.53225296,0.00019435,2]
[349566104,1737298232526,-8629.43987124,0.00019436,2]
[349566106,1737298232539,-2175.09238172,0.00019436,2]
[349566108,1737298232548,-3167.70311173,0.00019438,2]
[349566111,1737298232557,-780.37417885,0.00019441,2]
[349566114,1737298232566,-250.0,0.00019448,2]
[349566117,1737298232577,-500.0,0.00019451,2]
[349566120,1737298232587,-188.35,0.00019468,2]
[349566122,1737298232597,-646.72090874,0.00019473,2]
[349566124,1737298232606,-215.57363625,0.00019484,2]
[349566126,1737298232616,-215.57363625,0.00019489,2]
[349566128,1737298232625,-780.37417885,0.0001949,2]
[349566130,1737298232634,-646.72090874,0.0001949,2]
[349566132,1737298232644,-646.72090874,0.00019497,2]
[349566134,1737298232653,-181.14,0.00019558,2]
[349566136,1737298232664,-896.73,0.00019591,2]
[349566138,1737298232674,-166.65,0.00019689,2]
[349566140,1737298232684,-151.0,0.00019712,2]
[349566142,1737298232693,-500.0,0.00019724,2]
[349566144,1737298232702,-500.0,0.00019724,2]
[349566146,1737298232711,-500.0,0.00019724,2]
[349566148,1737298232721,-500.0,0.00019724,2]
[349566150,1737298232730,-500.0,0.00019724,2]
[349566152,1737298232739,-500.0,0.00019724,2]
[349566154,1737298232754,-386.0,0.00019724,2]
[349566156,1737298232763,-500.0,0.00019724,2]
[349566158,1737298232772,-512.1259345,0.00019724,2]
[349566160,1737298232782,-500.0,0.00019724,2]
[349566162,1737298232791,-500.0,0.00019724,2]
[349566164,1737298232800,-500.0,0.00019724,2]
[349566166,1737298232809,-500.0,0.00019724,2]
[349566168,1737298232818,-500.0,0.00019724,2]
[349566170,1737298232828,-500.0,0.00019724,2]
[349566172,1737298232837,-500.0,0.00019724,2]
[349566174,1737298232847,-500.0,0.00019724,2]
[349566177,1737298232858,-500.0,0.00019724,2]
[349566178,1737298232868,-500.0,0.00019724,2]
[349566180,1737298232877,-500.0,0.00019724,2]
[349566182,1737298232886,-500.0,0.00019724,2]
[349566184,1737298232896,-500.0,0.00019724,2]
[349566186,1737298232905,-500.0,0.00019724,2]
[349566188,1737298232915,-500.0,0.00019724,2]
[349566190,1737298232924,-500.0,0.00019724,2]
[349566192,1737298232934,-500.0,0.00019724,2]
[349566194,1737298232943,-500.0,0.00019724,2]
[349566196,1737298232952,-500.0,0.00019724,2]
[349566198,1737298232961,-253.17663351,0.00019724,2]
[349566200,1737298232971,-500.0,0.00019724,2]
[349566202,1737298232980,-500.0,0.00019724,2]
[349566204,1737298232989,-500.0,0.00019724,2]
[349566206,1737298233001,-500.0,0.00019724,2]
[349566220,1737298233125,-500.0,0.00019724,2]
[349566222,1737298233135,-500.0,0.00019724,2]
[349566224,1737298233145,-500.0,0.00019724,2]
[349566226,1737298233154,-500.0,0.00019724,2]
[349566228,1737298233164,-500.0,0.00019724,2]
[349566230,1737298233174,-500.0,0.00019724,2]
[349566232,1737298233183,-500.0,0.00019724,2]
[349566234,1737298233192,-500.0,0.00019724,2]
[349566236,1737298233202,-500.0,0.00019724,2]
[349566238,1737298233212,-500.0,0.00019724,2]
[349566239,1737298233222,-500.0,0.00019724,2]
[349566240,1737298233231,-500.0,0.00019724,2]
[349566241,1737298233241,-500.0,0.00019724,2]
[349566242,1737298233251,-500.0,0.00019724,2]
[349566243,1737298233260,-500.0,0.00019724,2]
[349566244,1737298233270,-431.91066013,0.00019724,2]
[349566245,1737298233279,-500.0,0.00019724,2]
[349566246,1737298233288,-641.76565917,0.00019724,2]
[349566247,1737298233298,-500.0,0.00019724,2]
[349566248,1737298233308,-500.0,0.00019724,2]
[349566249,1737298233317,-500.0,0.00019724,2]
[349566250,1737298233327,-677.87964315,0.00019724,2]
[349566251,1737298233337,-500.0,0.00019724,2]
[349566252,1737298233346,-500.0,0.00019724,2]
[349566253,1737298233356,-500.0,0.00019724,2]
[349566254,1737298233366,-500.0,0.00019724,2]
[349566255,1737298233376,-398.49748272,0.00019725,2]
[349566256,1737298233385,-402.09,0.000198,2]
[349566257,1737298233395,-500.0,0.00019998,2]
[349566258,1737298233404,-500.0,0.00019998,2]
[349566259,1737298233414,-500.0,0.00019998,2]
[349566260,1737298233423,-500.0,0.00019998,2]
[349566261,1737298233432,-500.0,0.00019998,2]
[349566262,1737298233442,-500.0,0.00019998,2]
[349566263,1737298233452,-501.91624544,0.00019998,2]
[349566264,1737298233462,-500.0,0.00019998,2]
[349566265,1737298233471,-500.0,0.00019998,2]
[349566266,1737298233481,-500.0,0.00019998,2]
[349566267,1737298233491,-500.0,0.00019998,2]
[349566268,1737298233501,-500.0,0.00019998,2]
[349566269,1737298233513,-500.0,0.00019998,2]
[349566270,1737298233524,-272.92185541,0.00019998,2]
[349566271,1737298233534,-3000.333606,0.0002,2]
[349566272,1737298233544,-1000.0,0.00020049,2]
[349566273,1737298233553,-606.13,0.00020051,2]
[349566274,1737298233564,-193.61,0.00020064,2]
[349566275,1737298233574,-500.81802442,0.00020138,2]
[349566276,1737298233583,-300.0,0.000202,7]
[349566277,1737298233593,-500.0,0.00020272,2]
[349566278,1737298233603,-500.0,0.00020272,2]
[349566279,1737298233614,-500.0,0.00020272,2]
[349566280,1737298233623,-500.0,0.00020272,2]
[349566281,1737298233633,-500.0,0.00020272,2]
[349566282,1737298233642,-529.130001,0.00020272,2]
[349566283,1737298233651,-500.0,0.00020272,2]
[349566284,1737298233661,-269.27501701,0.00020272,2]
[349566285,1737298233671,-647.53156935,0.00020272,2]
[349566286,1737298233681,-500.0,0.00020272,2]
[349566287,1737298233691,-274.59498856,0.00020272,2]
[349566288,1737298233700,-436.4795808,0.00020272,2]
[349566289,1737298233711,-600.0,0.000203,7]
[349566290,1737298233720,-166.65,0.00020393,2]
[349566291,1737298233729,-900.0,0.000204,7]
[349566292,1737298233739,-1300.0,0.000205,7]
[349566293,1737298233752,-500.0,0.00020546,2]
[349566294,1737298233761,-500.0,0.00020546,2]
[349566295,1737298233771,-500.0,0.00020546,2]
[349566296,1737298233780,-416.25465791,0.00020546,2]
[349566297,1737298233790,-500.0,0.00020546,2]
[349566298,1737298233799,-500.0,0.00020546,2]
[349566299,1737298233808,-500.0,0.00020546,2]
[349566300,1737298233819,-1846.0,0.000206,2]
[349566301,1737298233829,-1600.0,0.000206,7]
[349566302,1737298233839,-300.0,0.000207,7]
[349566303,1737298233849,-300.0,0.000208,7]
[349566304,1737298233858,-500.0,0.00020819,2]
[349566305,1737298233868,-500.0,0.00020819,2]
[349566306,1737298233877,-280.57784299,0.00020819,2]
[349566307,1737298233888,-1570.28,0.00020819,2]
[349566308,1737298233897,-500.0,0.00020819,2]
[349566309,1737298233906,-500.0,0.00020819,2]
[349566310,1737298233915,-500.0,0.00020819,2]
[349566311,1737298233925,-500.0,0.00020819,2]
[349566312,1737298233934,-461.18292631,0.00020819,2]
[349566313,1737298233943,-327.96529161,0.00020819,2]
[349566314,1737298233954,-500.0,0.00020819,2]
[349566315,1737298233963,-500.0,0.00020819,2]
[349566316,1737298233972,-599.02,0.00020819,2]
[349566317,1737298233982,-500.0,0.00020819,2]
[349566318,1737298233991,-500.0,0.00020819,2]
[349566319,1737298234005,-500.0,0.00020819,2]
[349566320,1737298234014,-500.0,0.00020819,2]
[349566321,1737298234023,-500.0,0.00020819,2]
[349566322,1737298234033,-500.0,0.00020819,2]
[349566323,1737298234043,-542.84,0.00020819,2]
[349566324,1737298234052,-500.0,0.00020819,2]
[349566325,1737298234062,-500.0,0.00020819,2]
[349566326,1737298234071,-594.04478226,0.00020819,2]
[349566327,1737298234081,-500.0,0.00020819,2]
[349566328,1737298234091,-500.0,0.00020819,2]
[349566329,1737298234101,-500.0,0.00020819,2]
[349566330,1737298234110,-500.0,0.00020819,2]
[349566331,1737298234120,-500.0,0.00020819,2]
[349566332,1737298234129,-500.0,0.00020819,2]
[349566333,1737298234139,-648.67,0.00020819,2]
[349566334,1737298234148,-500.0,0.00020819,2]
[349566335,1737298234158,-500.0,0.00020819,2]
[349566336,1737298234167,-500.0,0.00020819,2]
[349566337,1737298234176,-500.0,0.00020819,2]
[349566338,1737298234186,-557.27,0.00020819,2]
[349566339,1737298234195,-500.0,0.00020819,2]
[349566340,1737298234205,-500.0,0.00020819,2]
[349566341,1737298234214,-500.0,0.00020819,2]
[349566342,1737298234224,-571.93,0.00020819,2]
[349566343,1737298234233,-500.0,0.00020819,2]
[349566344,1737298234242,-500.0,0.00020819,2]
[349566345,1737298234254,-500.0,0.00020819,2]
[349566346,1737298234264,-500.0,0.00020819,2]
[349566347,1737298234273,-500.0,0.00020819,2]
[349566348,1737298234283,-500.0,0.00020819,2]
[349566349,1737298234294,-1282.99,0.00020819,2]
[349566350,1737298234304,-500.0,0.00020819,2]
[349566351,1737298234313,-500.0,0.00020819,2]
[349566352,1737298234323,-500.0,0.00020819,2]
[349566353,1737298234333,-500.0,0.00020819,2]
[349566354,1737298234343,-500.0,0.00020819,2]
[349566355,1737298234353,-500.0,0.00020819,2]
[349566356,1737298234363,-590.76,0.00020819,2]
[349566357,1737298234373,-502.3203175,0.00020819,2]
[349566358,1737298234382,-994.29,0.00020819,2]
[349566359,1737298234392,-500.0,0.00020819,2]
[349566360,1737298234402,-2276.44,0.00020819,2]
[349566361,1737298234412,-309.9032589,0.00020819,2]
[349566362,1737298234421,-500.0,0.00020819,2]
[349566363,1737298234431,-500.0,0.00020819,2]
[349566364,1737298234441,-500.0,0.00020819,2]
[349566365,1737298234451,-500.0,0.00020819,2]
[349566366,1737298234461,-500.0,0.00020819,2]
[349566367,1737298234471,-500.0,0.00020819,2]
[349566368,1737298234481,-500.0,0.00020819,2]
[349566369,1737298234491,-500.0,0.00020819,2]
[349566370,1737298234506,-1727.82,0.00020819,2]
[349566371,1737298234517,-500.0,0.00020819,2]
[349566372,1737298234526,-500.0,0.00020819,2]
[349566373,1737298234536,-500.0,0.00020819,2]
[349566374,1737298234547,-529.24011213,0.00020819,2]
[349566375,1737298234556,-500.0,0.00020819,2]
[349566376,1737298234566,-500.0,0.00020819,2]
[349566377,1737298234577,-1000.0,0.00020819,2]
[349566378,1737298234586,-500.0,0.00020819,2]
[349566379,1737298234596,-500.0,0.00020819,2]
[349566380,1737298234606,-500.0,0.00020819,2]
[349566381,1737298234615,-500.0,0.00020819,2]
[349566382,1737298234625,-500.0,0.00020819,2]
[349566383,1737298234634,-500.0,0.00020819,2]
[349566384,1737298234644,-500.0,0.00020819,2]
[349566385,1737298234654,-500.0,0.00020819,2]
[349566386,1737298234663,-500.0,0.0002082,2]
[349566387,1737298234672,-500.0,0.0002082,2]
[349566388,1737298234682,-500.0,0.0002082,2]
[349566389,1737298234691,-358.76127267,0.0002082,2]
[349566390,1737298234701,-500.0,0.0002082,2]
[349566391,1737298234711,-500.0,0.0002082,2]
[349566392,1737298234720,-300.0,0.000209,7]
[349566393,1737298234730,-194.32161878,0.000209,2]
[349566394,1737298234739,-150.01379272,0.000209,3]
[349566395,1737298234750,-822.05893865,0.000209,2]
[349566396,1737298234759,-983.04352418,0.000209,2]
[349566397,1737298234769,-203.94393132,0.000209,2]
[349566398,1737298234778,-150.98768141,0.00020973,2]
[349566399,1737298234788,-500.0,0.00020973,2]
[349566400,1737298234798,-160.80032135,0.00020973,2]
[349566401,1737298234807,-500.0,0.00020973,2]
[349566402,1737298234816,-150.74,0.0002099,2]
[349566403,1737298234826,-150.74,0.0002099,2]
[349566404,1737298234836,-150.74,0.0002099,2]
[349566405,1737298234845,-150.74,0.0002099,2]
[349566406,1737298234855,-150.74,0.0002099,2]
[349566407,1737298234864,-150.74,0.0002099,2]
[349566408,1737298234874,-150.74,0.0002099,2]
[349566409,1737298234884,-150.74,0.0002099,2]
[349566410,1737298234894,-150.74,0.0002099,2]
[349566411,1737298234903,-150.74,0.0002099,2]
[349566412,1737298234913,-150.74,0.0002099,2]
[349566413,1737298234922,-150.74,0.0002099,2]
[349566414,1737298234931,-172.60710239,0.0002099,2]
[349566415,1737298234941,-150.74,0.0002099,2]
[349566416,1737298234950,-172.60710239,0.0002099,2]
[349566417,1737298234959,-150.74,0.0002099,2]
[349566418,1737298234969,-150.74,0.0002099,2]
[349566419,1737298234978,-150.74,0.0002099,2]
[349566420,1737298234988,-150.74,0.0002099,2]
[349566421,1737298234999,-150.74,0.0002099,2]
[349566422,1737298235010,-150.74,0.0002099,2]
[349566423,1737298235019,-150.74,0.0002099,2]
[349566424,1737298235028,-150.74,0.0002099,2]
[349566425,1737298235038,-150.74,0.0002099,2]
[349566426,1737298235048,-150.74,0.0002099,2]
[349566427,1737298235057,-150.74,0.0002099,2]
[349566428,1737298235067,-150.74,0.0002099,2]
[349566429,1737298235076,-150.74,0.0002099,2]
[349566430,1737298235086,-150.74,0.0002099,2]
[349566431,1737298235096,-150.74,0.0002099,2]
[349566432,1737298235105,-150.74,0.0002099,2]
[349566433,1737298235114,-150.74,0.0002099,2]
[349566434,1737298235124,-150.74,0.0002099,2]
[349566435,1737298235134,-150.74,0.0002099,2]
[349566436,1737298235144,-150.74,0.0002099,2]
[349566437,1737298235153,-150.74,0.0002099,2]
[349566438,1737298235163,-150.74,0.0002099,2]
[349566439,1737298235172,-150.74,0.0002099,2]
[349566440,1737298235181,-150.74,0.0002099,2]
[349566441,1737298235191,-150.74,0.0002099,2]
[349566442,1737298235200,-150.74,0.0002099,2]
[349566443,1737298235209,-150.74,0.0002099,2]
[349566444,1737298235219,-150.74,0.0002099,2]
[349566445,1737298235228,-150.74,0.0002099,2]
[349566446,1737298235237,-150.74,0.0002099,2]
[349566447,1737298235248,-150.74,0.0002099,2]
[349566448,1737298235258,-150.74,0.0002099,2]
[349566449,1737298235267,-150.74,0.0002099,2]
[349566450,1737298235276,-150.74,0.0002099,2]
[349566451,1737298235286,-150.74,0.0002099,2]
[349566452,1737298235295,-150.74,0.0002099,2]
[349566453,1737298235305,-150.74,0.0002099,2]
[349566454,1737298235314,-150.74,0.0002099,2]
[349566455,1737298235323,-150.74,0.0002099,2]
[349566456,1737298235332,-150.74,0.0002099,2]
[349566457,1737298235342,-150.74,0.0002099,2]
[349566458,1737298235351,-150.74,0.0002099,2]
[349566459,1737298235360,-150.74,0.0002099,2]
[349566460,1737298235373,-150.74,0.0002099,2]
[349566461,1737298235383,-150.74,0.0002099,2]
[349566462,1737298235392,-150.74,0.0002099,2]
[349566463,1737298235402,-150.74,0.0002099,2]
[349566464,1737298235411,-150.74,0.0002099,2]
[349566465,1737298235421,-150.74,0.0002099,2]
[349566466,1737298235431,-150.74,0.0002099,2]
[349566467,1737298235441,-150.74,0.0002099,2]
[349566468,1737298235451,-150.74,0.0002099,2]
[349566469,1737298235460,-150.74,0.0002099,2]
[349566470,1737298235470,-150.74,0.0002099,2]
[349566471,1737298235480,-150.74,0.0002099,2]
[349566472,1737298235490,-150.74,0.0002099,2]
[349566473,1737298235501,-150.74,0.0002099,2]
[349566474,1737298235513,-150.74,0.0002099,2]
[349566475,1737298235523,-150.74,0.0002099,2]
[349566476,1737298235533,-150.74,0.0002099,2]
[349566477,1737298235543,-150.74,0.0002099,2]
[349566478,1737298235553,-150.74,0.0002099,2]
[349566479,1737298235562,-150.74,0.0002099,2]
[349566480,1737298235572,-150.74,0.0002099,2]
[349566481,1737298235582,-150.74,0.0002099,2]
[349566482,1737298235594,-150.74,0.0002099,2]
[349566483,1737298235603,-150.74,0.0002099,2]
[349566484,1737298235613,-150.74,0.0002099,2]
[349566485,1737298235622,-150.74,0.0002099,2]
[349566486,1737298235633,-150.74,0.0002099,2]
[349566487,1737298235643,-150.74,0.0002099,2]
[349566488,1737298235653,-150.74,0.0002099,2]
[349566489,1737298235663,-150.74,0.0002099,2]
[349566490,1737298235673,-150.74,0.0002099,2]
[349566491,1737298235683,-150.74,0.0002099,2]
[349566492,1737298235692,-150.74,0.0002099,2]
[349566493,1737298235950,-150.74,0.0002099,2]
[349566494,1737298235960,-150.74,0.0002099,2]
[349566495,1737298235969,-150.74,0.0002099,2]
[349566496,1737298235979,-500.0,0.00020999,2]
[349566497,1737298235988,-500.0,0.00020999,2]
[349566498,1737298235999,-500.0,0.00020999,2]
[349566499,1737298236009,-500.0,0.00020999,2]
[349566500,1737298236018,-500.0,0.00020999,2]
[349566501,1737298236027,-500.0,0.00020999,2]
[349566502,1737298236037,-500.0,0.00020999,2]
[349566503,1737298236046,-500.0,0.00020999,2]
[349566504,1737298236055,-500.0,0.00020999,2]
[349566505,1737298236064,-138.12238831,0.00020999,2]
[349566514,1737298237832,-361.87761169,0.00020999,2]
[349566515,1737298237842,-500.0,0.00020999,2]
[349566516,1737298237852,-546.8222062,0.00020999,2]
[349566517,1737298237862,-500.0,0.00020999,2]
[349566518,1737298237871,-155.969015,0.00020999,2]
[349566519,1737298237880,-500.0,0.00020999,2]
[349566520,1737298237890,-500.0,0.00020999,2]
[349566521,1737298237900,-500.0,0.00020999,2]
[349566522,1737298237909,-500.0,0.00020999,2]
[349566523,1737298237919,-500.0,0.00020999,2]
[349566524,1737298237929,-536.0,0.00020999,2]
[349566525,1737298237938,-492.85898689,0.00020999,2]
[349566526,1737298237948,-864.52,0.00020999,2]
[349566527,1737298237958,-500.0,0.00020999,2]
[349566528,1737298237968,-277.113877,0.00020999,2]
[349566529,1737298237978,-500.0,0.00020999,2]
[349566530,1737298237987,-500.0,0.00020999,2]
[349566531,1737298237997,-325.98163605,0.00020999,2]
[349566532,1737298238007,-693.77,0.00020999,2]
[349566533,1737298238017,-232.69361128,0.00020999,2]
[349566534,1737298238027,-670.41,0.00020999,2]
[349566535,1737298238036,-906.61,0.00020999,2]
[349566536,1737298238046,-500.0,0.00020999,2]
[349566537,1737298238056,-953.78,0.00020999,2]
[349566538,1737298238065,-500.0,0.00020999,2]
[349566539,1737298238075,-1009.2395,0.00020999,2]
[349566540,1737298238085,-500.0,0.00020999,2]
[349566541,1737298238094,-906.45,0.00020999,2]
[349566542,1737298238104,-343.9516765,0.00020999,2]
[349566543,1737298238114,-500.0,0.00020999,2]
[349566544,1737298238124,-500.0,0.00020999,2]
[349566545,1737298238133,-500.0,0.00020999,2]
[349566546,1737298238143,-500.0,0.00020999,2]
[349566547,1737298238154,-500.0,0.00020999,2]
[349566548,1737298238164,-500.0,0.00020999,2]
[349566549,1737298238173,-500.0,0.00020999,2]
[349566550,1737298238183,-570.50125801,0.00020999,2]
[349566551,1737298238193,-500.0,0.00020999,2]
[349566552,1737298238202,-500.0,0.00020999,2]
[349566553,1737298238212,-500.0,0.00020999,2]
[349566554,1737298238221,-1598.03042138,0.00020999,2]
[349566555,1737298238234,-256.93957862,0.00020999,2]
[349566556,1737298238243,-500.0,0.00020999,2]
[349566557,1737298238254,-500.0,0.00020999,2]
[349566558,1737298238263,-500.0,0.00020999,2]
[349566559,1737298238273,-500.0,0.00020999,2]
[349566560,1737298238284,-500.0,0.00020999,2]
[349566561,1737298238294,-500.0,0.00020999,2]
[349566562,1737298238305,-500.0,0.00020999,2]
[349566563,1737298238314,-541.53,0.00020999,2]
[349566565,1737298238324,-500.0,0.00020999,2]
[349566567,1737298238334,-500.0,0.00020999,2]
[349566569,1737298238344,-500.0,0.00020999,2]
[349566571,1737298238354,-500.0,0.00020999,2]
[349566573,1737298238363,-809.64,0.00020999,2]
[349566575,1737298238373,-500.0,0.00020999,2]
[349566576,1737298238382,-500.0,0.00020999,2]
[349566577,1737298238392,-500.0,0.00020999,2]
[349566578,1737298238402,-500.0,0.00020999,2]
[349566579,1737298238411,-500.0,0.00020999,2]
[349566580,1737298238421,-505.58855027,0.00020999,2]
[349566581,1737298238431,-500.0,0.00020999,2]
[349566582,1737298238440,-713.94,0.00020999,2]
[349566583,1737298238450,-500.0,0.00020999,2]
[349566584,1737298238459,-500.0,0.00020999,2]
[349566585,1737298238468,-500.0,0.00020999,2]
[349566586,1737298238479,-500.0,0.00020999,2]
[349566587,1737298238488,-500.0,0.00020999,2]
[349566588,1737298238500,-500.0,0.00020999,2]
[349566589,1737298238511,-500.0,0.00020999,2]
[349566590,1737298238521,-500.0,0.00020999,2]
[349566591,1737298238530,-500.0,0.00020999,2]
[349566592,1737298238539,-780.08,0.00020999,2]
[349566593,1737298238551,-500.0,0.00020999,2]
[349566594,1737298238561,-510.40028932,0.00020999,2]
[349566595,1737298238571,-2692.38,0.00020999,2]
[349566596,1737298238580,-735.73,0.00020999,2]
[349566597,1737298238591,-500.0,0.00020999,2]
[349566598,1737298238600,-959.47,0.00020999,2]
[349566599,1737298238611,-500.0,0.00020999,2]
[349566600,1737298238620,-487.47016505,0.00020999,2]
[349566601,1737298238630,-506.62,0.00020999,2]
[349566602,1737298238639,-624.82,0.00020999,2]
[349566603,1737298238648,-500.0,0.00020999,2]
[349566604,1737298238658,-500.0,0.00020999,2]
[349566605,1737298238669,-500.0,0.00020999,2]
[349566606,1737298238680,-500.0,0.00020999,2]
[349566607,1737298238689,-500.0,0.00020999,2]
[349566608,1737298238699,-500.0,0.00020999,2]
[349566609,1737298238708,-467.23484838,0.00020999,2]
[349566610,1737298238718,-500.0,0.00020999,2]
[349566611,1737298238729,-500.0,0.00020999,2]
[349566612,1737298238739,-500.0,0.00020999,2]
[349566613,1737298238751,-608.68,0.00020999,2]
[349566614,1737298238761,-1313.93,0.00020999,2]
[349566615,1737298238770,-626.13,0.00020999,2]
[349566616,1737298238780,-578.24,0.00020999,2]
[349566617,1737298238789,-500.0,0.00020999,2]
[349566618,1737298238798,-500.0,0.00020999,2]
[349566619,1737298238808,-237.4156826,0.00020999,2]
[349566620,1737298238818,-1313.3,0.00020999,2]
[349566621,1737298238827,-500.0,0.00020999,2]
[349566622,1737298238837,-1159.93,0.00020999,2]
[349566623,1737298238847,-240.98477002,0.00020999,2]
[349566624,1737298238857,-500.0,0.00020999,2]
[349566625,1737298238866,-500.0,0.00020999,2]
[349566626,1737298238876,-500.0,0.00020999,2]
[349566627,1737298238886,-500.0,0.00020999,2]
[349566628,1737298238896,-500.0,0.00020999,2]